bitfinex/quotes_SOLUSD_20250624
["timestamp","ask_amount","ask_price","bid_price","bid_amount"]
[1750795437108,7.8241,143.64,143.6,6.65161461]
[1750795438003,9.21651282,143.64,143.6,6.65161461]
[1750795438881,9.21651282,143.64,143.61,6.65161461]
[1750795438882,1.39241282,143.64,143.61,6.65161461]
[1750795440201,1.3923125,143.65,143.61,6.65161461]
[1750795440608,18.64964886,143.67,143.62,6.65161461]
[1750795440609,6.65161461,143.67,143.62,6.65161461]
[1750795440797,1.39213931,143.67,143.65,6.65161461]
[1750795441487,16.00791682,143.68,143.65,6.65161461]
[1750795442209,16.00791682,143.68,143.64,6.65161461]
[1750795442507,6.65161461,143.66,143.61,6.65161461]
[1750795442812,6.65161461,143.66,143.62,6.65161461]
[1750795443010,6.65161461,143.67,143.62,6.65161461]
[1750795443487,1.39211134,143.67,143.64,6.65161461]
[1750795445584,9.45552439,143.68,143.65,6.65161461]
[1750795446091,7.93202439,143.68,143.65,6.65161461]
[1750795446599,7.93202439,143.68,143.64,6.65161461]
[1750795446991,14.55370037,143.71,143.67,6.65161461]
[1750795447188,14.55370037,143.71,143.68,6.65161461]
[1750795447412,14.55370037,143.71,143.67,6.65161461]
[1750795448193,15.94543138,143.71,143.67,6.65161461]
[1750795448396,6.65161461,143.68,143.64,6.65161461]
[1750795448704,6.65161461,143.69,143.65,6.65161461]
[1750795450210,1.39198218,143.68,143.65,6.65161461]
[1750795451411,8.04340305,143.7,143.65,6.65161461]
[1750795451918,6.65161461,143.69,143.65,6.65161461]
[1750795452217,6.65161461,143.69,143.6,27.50679846]
[1750795452218,6.65161461,143.68,143.64,6.65161461]
[1750795452516,6.65161461,143.67,143.63,6.65161461]
[1750795453511,1.39217597,143.66,143.63,6.65161461]
[1750795455522,1.39207907,143.67,143.63,6.65161461]
[1750795455813,1.39207907,143.67,143.64,6.65161461]
[1750795455996,1.39207907,143.67,143.65,6.65161461]
[1750795457420,7.93199429,143.68,143.65,6.65161461]
[1750795458326,14.5836089,143.68,143.64,6.65161461]
[1750795458620,7.93199429,143.68,143.64,6.65161461]
[1750795459325,7.93199429,143.68,143.62,6.96267549]
[1750795459501,7.93199429,143.68,143.64,6.65161461]
[1750795460208,14.5836089,143.68,143.63,6.65161461]
[1750795460606,7.93199429,143.68,143.64,6.65161461]
[1750795461320,7.93199429,143.68,143.65,6.65161461]
[1750795462308,7.93199429,143.68,143.66,6.65161461]
[1750795463122,7.93199429,143.68,143.65,6.65161461]
[1750795465005,7.93199429,143.68,143.63,6.96223969]
[1750795465208,6.65161461,143.67,143.63,6.65161461]
[1750795465418,6.65161461,143.67,143.61,88.7]
[1750795465419,6.65161461,143.67,143.62,6.65161461]
[1750795465799,7.93199429,143.68,143.62,6.65161461]
[1750795466015,14.5836089,143.68,143.63,6.65161461]
[1750795466413,18.06356435,143.68,143.63,6.65161461]
[1750795466817,18.06356435,143.68,143.61,88.7]
[1750795467002,18.06356435,143.68,143.63,6.65161461]
[1750795468129,6.65161461,143.67,143.62,6.65161461]
[1750795468701,6.65161461,143.65,143.58,99.02863932]
[1750795468905,6.65161461,143.59,143.58,10.32863932]
[1750795469319,6.65161461,143.6,143.58,10.32863932]
[1750795469511,6.65161461,143.61,143.58,10.32863932]
[1750795470718,1.39275766,143.6,143.58,10.32863932]
[1750795471431,8.04437227,143.6,143.58,10.32863932]
[1750795472130,6.65161461,143.59,143.58,10.32863932]
[1750795472826,6.65161461,143.59,143.52,6.65161461]
[1750795472827,1.39295166,143.58,143.52,13.61896573]
[1750795473033,6.65161461,143.57,143.52,6.65161461]
[1750795474233,8.04468418,143.57,143.52,13.6191593]
[1750795474417,8.04460655,143.58,143.53,6.65161461]
[1750795474728,1.39299194,143.58,143.54,6.65161461]
[1750795474930,1.6568,143.59,143.52,24.38671971]
[1750795475139,32.65161461,143.61,143.56,6.65161461]
[1750795476124,34.0443512,143.61,143.52,112.77078963]
[1750795476429,6.65161461,143.6,143.55,6.65161461]
[1750795476938,6.65161461,143.59,143.54,6.65161461]
[1750795478144,1.39295166,143.58,143.55,6.65161461]
[1750795478322,1.39295166,143.58,143.52,32.96745424]
[1750795478529,8.04456627,143.58,143.53,6.65161461]
[1750795478835,8.04456627,143.58,143.54,6.65161461]
[1750795479420,1.39295166,143.58,143.54,6.65161461]
[1750795479634,1.39295166,143.58,143.53,6.96708877]
[1750795479635,1.3928808,143.59,143.55,6.65161461]
[1750795480448,8.04449541,143.59,143.54,6.65161461]
[1750795480740,1.3928808,143.59,143.55,6.65161461]
[1750795482130,8.04449541,143.59,143.55,6.65161461]
[1750795482334,6.65161461,143.58,143.54,6.65161461]
[1750795482653,6.65161461,143.57,143.53,95.35161461]
[1750795482815,8.04476033,143.56,143.53,88.7]
[1750795483017,8.04476033,143.56,143.5,88.7]
[1750795483018,6.65161461,143.54,143.5,88.7]
[1750795483215,6.65161461,143.54,143.5,6.65161461]
[1750795484665,6.65161461,143.55,143.5,6.65161461]
[1750795485344,1.3933369,143.55,143.51,6.65161461]
[1750795485544,1.3933369,143.55,143.52,6.65161461]
[1750795485863,14.56479568,143.56,143.52,6.65161461]
[1750795487263,6.65161461,143.54,143.48,88.7]
[1750795487447,14.56479568,143.56,143.51,6.65161461]
[1750795487648,6.52,143.56,143.52,6.65161461]
[1750795487853,7.43147928,143.58,143.55,6.65161461]
[1750795488252,7.43147928,143.58,143.54,6.65161461]
[1750795488653,6.0385,143.58,143.55,6.65161461]
[1750795488968,1.39288837,143.59,143.55,6.65161461]
[1750795489970,1.39279826,143.6,143.57,6.65161461]
[1750795490261,14.2372,143.61,143.57,6.65161461]
[1750795490452,15.62990298,143.61,143.58,6.65161461]
[1750795491465,15.62990298,143.61,143.59,6.65161461]
[1750795491466,6.52,143.61,143.59,6.65161461]
[1750795491665,7.91268374,143.61,143.59,6.65161461]
[1750795492154,7.91268374,143.61,143.58,6.65161461]
[1750795495056,7.91268374,143.61,143.57,6.65161461]
[1750795496567,7.91268374,143.61,143.57,13.61675376]
[1750795496774,6.52,143.61,143.59,6.65161461]
[1750795497769,1.39239587,143.64,143.6,6.65161461]
[1750795499051,8.04401048,143.64,143.59,6.65161461]
[1750795499684,8.04401048,143.64,143.58,6.96449194]
[1750795499685,1.39239587,143.64,143.6,6.65161461]
[1750795499874,8.04401048,143.64,143.6,6.65161461]
[1750795501182,6.65161461,143.63,143.57,88.7]
[1750795501387,6.65161461,143.58,143.54,6.65161461]
[1750795501558,6.65161461,143.59,143.54,6.65161461]
[1750795501876,13.17161461,143.6,143.55,6.65161461]
[1750795503074,1.39285465,143.59,143.56,6.65161461]
[1750795503476,6.52,143.6,143.57,6.65161461]
[1750795503668,6.52,143.6,143.58,6.65161461]
[1750795504472,6.52,143.6,143.55,6.96613933]
[1750795504663,6.52,143.6,143.58,6.65161461]
[1750795506371,7.91276238,143.6,143.58,6.65161461]
[1750795506567,7.91276238,143.6,143.57,6.65161461]
[1750795507262,6.52,143.6,143.57,6.65161461]
[1750795507465,6.52,143.6,143.58,6.65161461]
[1750795511794,26.0,143.64,143.59,6.65161461]
[1750795511989,3.48048975,143.66,143.56,1.5152]
[1750795511990,1.39217597,143.66,143.62,6.65161461]
[1750795512885,6.65161461,143.65,143.61,6.65161461]
[1750795513469,6.65161461,143.65,143.6,6.65161461]
[1750795513672,1.39217597,143.66,143.6,6.65161461]
[1750795513879,1.39236981,143.64,143.6,6.65161461]
[1750795514084,6.65161461,143.65,143.59,6.96399063]
[1750795514085,1.39229909,143.65,143.61,6.65161461]
[1750795516810,8.04382887,143.66,143.61,6.65161461]
[1750795517878,7.91211996,143.67,143.61,13.61482842]
[1750795518072,14.56373457,143.67,143.62,6.65161461]
[1750795519284,14.56373457,143.67,143.62,13.61417146]
[1750795519883,7.91211996,143.67,143.62,13.61417146]
[1750795520204,6.52,143.67,143.65,6.65161461]
[1750795521374,6.52,143.67,143.65,13.61294975]
[1750795523827,6.52,143.67,143.63,6.96233377]
[1750795523997,6.52,143.67,143.66,6.65161461]
[1750795524318,6.52,143.67,143.65,6.65161461]
[1750795525492,6.52,143.67,143.66,6.65161461]
[1750795526025,12.93700037,143.71,143.66,13.61249446]
[1750795526205,12.93700037,143.71,143.68,6.65161461]
[1750795526407,14.32872483,143.71,143.67,6.65161461]
[1750795528932,14.32872483,143.71,143.68,6.65161461]
[1750795529829,12.93700037,143.71,143.68,6.65161461]
[1750795530403,6.65161461,143.7,143.64,26.0]
[1750795530611,24.72334886,143.7,143.6,6.96364781]
[1750795530810,6.65161461,143.66,143.61,6.65161461]
[1750795531121,1.39226969,143.66,143.62,6.65161461]
[1750795531515,8.0438843,143.66,143.62,6.65161461]
[1750795535233,1.3921237,143.67,143.63,6.65161461]
[1750795536229,1.3921237,143.67,143.64,6.65161461]
[1750795536410,7.89199498,143.68,143.66,6.65161461]
[1750795536825,6.5,143.68,143.66,6.65161461]
[1750795537431,6.5,143.68,143.67,6.65161461]
[1750795537630,1.39182263,143.7,143.67,6.65161461]
[1750795538831,1.39182263,143.7,143.65,6.96118937]
[1750795539037,1.39182263,143.7,143.67,6.65161461]
[1750795539437,12.93700037,143.71,143.64,88.7]
[1750795539438,14.32871978,143.71,143.68,6.65161461]
[1750795540151,14.32871978,143.71,143.69,6.65161461]
[1750795540333,12.93700037,143.71,143.7,6.65161461]
[1750795540528,7.87153333,143.73,143.7,6.65161461]
[1750795541121,6.48,143.73,143.71,6.65161461]
[1750795542118,6.65161461,143.76,143.72,6.65161461]
[1750795542119,1.391233,143.76,143.72,6.65161461]
[1750795542325,1.391233,143.76,143.74,6.65161461]
[1750795542839,9.287123,143.77,143.73,6.65161461]
[1750795544152,9.287123,143.77,143.74,6.65161461]
[1750795544734,9.287123,143.77,143.73,6.65161461]
[1750795548130,6.65161461,143.75,143.7,6.65161461]
[1750795548535,6.65161461,143.74,143.7,6.65161461]
[1750795549141,1.39149794,143.73,143.69,6.65161461]
[1750795550929,1.39149794,143.73,143.66,26.0]
[1750795550930,1.39130434,143.75,143.71,6.65161461]
[1750795554263,1.39130434,143.75,143.72,6.65161461]
[1750795555751,1.39120756,143.76,143.72,6.65161461]
[1750795556649,1.39114115,143.77,143.75,6.65161461]
[1750795556849,51.6,143.78,143.75,6.65161461]
[1750795556850,52.99105682,143.78,143.75,6.65161461]
[1750795557160,52.99105682,143.78,143.72,88.7]
[1750795557161,7.87105682,143.78,143.74,6.65161461]
[1750795557951,7.87105682,143.78,143.72,88.7]
[1750795557952,7.87105682,143.78,143.72,95.65788531]
[1750795558154,7.87105682,143.78,143.74,6.65161461]
[1750795559171,36.64985541,143.78,143.73,6.65161461]
[1750795559376,36.64985541,143.78,143.72,88.7]
[1750795559377,6.65161461,143.77,143.72,95.35161461]
[1750795559945,1.39120756,143.76,143.72,95.35161461]
[1750795560672,1.39120756,143.76,143.72,6.65161461]
[1750795561358,8.04282217,143.76,143.71,6.65161461]
[1750795561670,11.52084109,143.76,143.71,6.65161461]
[1750795565649,11.52084109,143.76,143.72,6.65161461]
[1750795566050,10.12963353,143.76,143.72,6.65161461]
[1750795566573,8.23371461,143.75,143.7,6.65161461]
[1750795566778,8.23371461,143.75,143.68,26.0]
[1750795566951,8.23371461,143.75,143.7,6.65161461]
[1750795567960,1.39140114,143.74,143.7,6.65161461]
[1750795568179,6.65161461,143.72,143.68,6.65161461]
[1750795568372,6.65161461,143.71,143.62,113.82964886]
[1750795568674,6.65161461,143.7,143.66,6.65161461]
[1750795568878,6.65161461,143.69,143.65,6.65161461]
[1750795569059,6.65161461,143.69,143.64,6.65161461]
[1750795569654,6.65161461,143.68,143.63,6.65161461]
[1750795569977,1.39207907,143.67,143.63,6.65161461]
[1750795570152,8.04369368,143.67,143.63,6.65161461]
[1750795572275,6.65161461,143.65,143.58,1.6059]
[1750795572467,6.65161461,143.65,143.61,6.65161461]
[1750795572664,6.65161461,143.65,143.61,32.65161461]
[1750795573164,6.65161461,143.65,143.61,6.65161461]
[1750795574174,1.39236981,143.64,143.61,6.65161461]
[1750795574475,1.39236981,143.64,143.6,6.65161461]
[1750795574682,8.04398442,143.64,143.59,6.65161461]
[1750795574876,6.65161461,143.63,143.59,6.65161461]
[1750795575071,1.39236981,143.64,143.59,6.65161461]
[1750795575390,8.04398442,143.64,143.59,6.65161461]
[1750795575558,1.39236981,143.64,143.61,6.65161461]
[1750795576786,1.39236981,143.64,143.6,6.65161461]
[1750795576963,9.62918442,143.64,143.59,6.65161461]
[1750795577166,6.65161461,143.63,143.58,32.65161461]
[1750795578470,1.3925637,143.62,143.58,32.65161461]
[1750795579683,1.3925637,143.62,143.59,6.65161461]
[1750795579988,8.04417831,143.62,143.57,6.65161461]
[1750795580183,8.04417831,143.62,143.56,6.65161461]
[1750795580184,6.65161461,143.61,143.56,6.65161461]
[1750795580688,6.65161461,143.61,143.57,6.65161461]
[1750795581786,8.04437023,143.61,143.57,6.65161461]
[1750795583469,8.04437023,143.61,143.56,6.65161461]
[1750795584072,8.04437023,143.61,143.55,95.66603017]
[1750795584073,8.04437023,143.61,143.57,6.65161461]
[1750795585685,27.5852,143.64,143.59,6.65161461]
[1750795585869,34.23681461,143.64,143.59,6.65161461]
[1750795586687,1.39246675,143.63,143.59,6.65161461]
[1750795587196,1.39246675,143.63,143.6,6.65161461]
[1750795588283,2.97761207,143.64,143.6,6.65161461]
[1750795588976,9.62922668,143.64,143.6,6.65161461]
[1750795589993,6.65161461,143.62,143.57,6.65161461]
[1750795590175,6.65161461,143.62,143.58,6.65161461]
[1750795591083,1.39266067,143.61,143.58,6.65161461]
[1750795593988,1.39266067,143.61,143.56,121.66572861]
[1750795594293,6.46,143.66,143.6,6.65161461]
[1750795594495,6.46,143.66,143.64,6.65161461]
[1750795594875,7.85218107,143.66,143.64,6.65161461]
[1750795595700,7.85218107,143.66,143.63,6.65161461]
[1750795595998,14.50379568,143.66,143.59,114.7]
[1750795596300,6.65161461,143.64,143.59,6.65161461]
[1750795596694,6.65161461,143.64,143.58,26.0]
[1750795596695,6.65161461,143.63,143.58,6.65161461]
[1750795597803,1.39266067,143.61,143.57,6.65161461]
[1750795598319,8.04427528,143.61,143.57,6.65161461]
[1750795598487,1.39266067,143.61,143.58,6.65161461]
[1750795599801,1.3925637,143.62,143.58,6.65161461]
[1750795600424,8.04417831,143.62,143.58,6.65161461]
[1750795600805,8.04417831,143.62,143.57,6.65161461]
[1750795602819,6.65161461,143.61,143.57,6.65161461]
[1750795603117,1.3925637,143.62,143.57,6.65161461]
[1750795603118,8.04417831,143.62,143.57,6.65161461]
[1750795604220,8.04417831,143.62,143.58,6.65161461]
[1750795606613,1.3925637,143.62,143.59,6.65161461]
[1750795608090,9.46530908,143.63,143.57,88.7]
[1750795608316,6.65161461,143.62,143.58,6.65161461]
[1750795608496,6.65161461,143.62,143.57,95.35161461]
[1750795610495,1.39266067,143.61,143.57,95.35161461]
[1750795611929,8.04427528,143.61,143.55,26.0]
[1750795612097,8.04427528,143.61,143.56,6.65161461]
[1750795612720,8.04427528,143.61,143.55,26.0]
[1750795612721,6.65161461,143.6,143.55,32.65161461]
[1750795613023,6.65161461,143.59,143.54,32.65161461]
[1750795613896,1.39295166,143.58,143.54,32.65161461]
[1750795614095,8.04456627,143.58,143.54,26.0]
[1750795614295,11.52694543,143.58,143.53,6.65161461]
[1750795614494,6.65161461,143.55,143.5,6.65161461]
[1750795614700,6.65161461,143.54,143.49,6.65161461]
[1750795615506,6.65161461,143.55,143.5,6.65161461]
[1750795616123,6.65161461,143.56,143.52,6.65161461]
[1750795616305,6.65161461,143.56,143.51,6.65161461]
[1750795617330,1.39324277,143.55,143.51,6.65161461]
[1750795618527,8.04485738,143.55,143.51,6.65161461]
[1750795618731,8.04485738,143.55,143.5,6.65161461]
[1750795618909,6.65161461,143.54,143.5,6.65161461]
[1750795619616,1.39343691,143.53,143.5,6.65161461]
[1750795620405,1.39343691,143.53,143.48,105.61262452]
[1750795620637,1.39343691,143.53,143.49,6.65161461]
[1750795621004,6.65161461,143.55,143.5,6.65161461]
[1750795621250,6.65161461,143.55,143.51,6.65161461]
[1750795621728,8.04476033,143.56,143.51,6.65161461]
[1750795621921,6.65161461,143.55,143.51,6.65161461]
[1750795622912,8.04476033,143.56,143.51,6.65161461]
[1750795623122,7.603,143.57,143.54,6.65161461]
[1750795623322,1.5757,143.57,143.54,6.65161461]
[1750795623635,1.5757,143.57,143.54,13.61810178]
[1750795623937,1.5757,143.57,143.55,6.65161461]
[1750795624239,1.39288214,143.59,143.55,6.65161461]
[1750795624429,1.39288214,143.59,143.56,6.65161461]
[1750795625529,15.64567901,143.6,143.56,6.65161461]
[1750795625716,15.64567901,143.6,143.57,6.65161461]
[1750795628513,15.64567901,143.6,143.56,6.65161461]
[1750795630438,8.0871,143.6,143.57,6.65161461]
[1750795631250,9.47986251,143.6,143.58,6.65161461]
[1750795631420,6.44,143.6,143.58,6.65161461]
[1750795631618,6.44,143.6,143.59,6.65161461]
[1750795638054,15.25519981,143.64,143.59,13.61582377]
[1750795638254,15.25519981,143.64,143.63,6.65161461]
[1750795638433,8.04369368,143.67,143.62,6.65161461]
[1750795639048,7.81199908,143.68,143.65,6.65161461]
[1750795639228,6.42,143.68,143.65,6.65161461]
[1750795639436,6.42,143.68,143.61,5.62005525]
[1750795639437,6.42,143.68,143.66,6.65161461]
[1750795639754,6.42,143.68,143.65,6.65161461]
[1750795640248,7.81200996,143.68,143.65,6.65161461]
[1750795648850,14.46362457,143.68,143.63,88.7]
[1750795649155,14.46362457,143.68,143.64,6.65161461]
[1750795649651,7.81200996,143.68,143.65,6.65161461]
[1750795649859,7.81200996,143.68,143.63,95.66231919]
[1750795649860,6.42,143.68,143.67,6.65161461]
[1750795650032,1.39171802,143.71,143.67,6.65161461]
[1750795650226,1.39171802,143.71,143.68,6.65161461]
[1750795651050,1.39163976,143.72,143.69,6.65161461]
[1750795651253,1.39163976,143.72,143.7,6.65161461]
[1750795651545,8.04325437,143.72,143.65,6.96136442]
[1750795651751,6.65161461,143.71,143.67,6.65161461]
[1750795651932,6.65161461,143.7,143.66,6.65161461]
[1750795653051,1.3918853,143.69,143.66,6.65161461]
[1750795653249,1.3918853,143.69,143.65,6.65161461]
[1750795653447,6.65161461,143.68,143.64,32.65161461]
[1750795653658,6.65161461,143.68,143.64,26.0]
[1750795654346,6.65161461,143.68,143.64,32.65161461]
[1750795655234,1.39207907,143.67,143.64,32.65161461]
[1750795656767,6.65161461,143.68,143.64,32.65161461]
[1750795656768,1.39202921,143.68,143.64,32.65161461]
[1750795657263,1.39192008,143.69,143.66,6.65161461]
[1750795667771,1.39192008,143.69,143.65,6.65161461]
[1750795667981,1.39192008,143.69,143.64,121.35161461]
[1750795667982,6.65161461,143.68,143.64,121.35161461]
[1750795669680,1.39207907,143.67,143.64,121.35161461]
[1750795670056,1.39207907,143.67,143.64,32.65161461]
[1750795671876,1.39198218,143.68,143.62,88.7]
[1750795672084,1.39198218,143.68,143.62,95.35161461]
[1750795672085,13.05161461,143.67,143.62,95.35161461]
[1750795672393,6.65161461,143.66,143.61,6.65161461]
[1750795673262,6.65161461,143.66,143.62,6.65161461]
[1750795673684,1.39227288,143.65,143.62,6.65161461]
[1750795673980,1.39218512,143.66,143.62,13.61441038]
[1750795674275,1.39218512,143.66,143.63,6.65161461]
[1750795680298,8.04379973,143.66,143.62,6.65161461]
[1750795681881,1.39218512,143.66,143.62,13.6143027]
[1750795682178,1.39218512,143.66,143.63,6.65161461]
[1750795685556,1.39218512,143.66,143.62,6.65161461]
[1750795685783,1.39218512,143.66,143.6,6.65161461]
[1750795685784,6.65161461,143.65,143.6,6.65161461]
[1750795685987,8.04379973,143.66,143.61,6.65161461]
[1750795688186,8.30371461,143.65,143.6,6.65161461]
[1750795688579,6.65161461,143.64,143.6,6.65161461]
[1750795688908,6.65161461,143.64,143.59,26.0]
[1750795688909,6.65161461,143.64,143.59,6.65161461]
[1750795689190,8.2418,143.65,143.57,6.65161461]
[1750795689191,6.65161461,143.62,143.57,6.65161461]
[1750795689363,1.39266067,143.61,143.58,6.65161461]
[1750795691678,1.39266067,143.61,143.57,6.65161461]
[1750795692390,8.04427528,143.61,143.57,6.65161461]
[1750795692576,8.04427528,143.61,143.56,95.35161461]
[1750795693178,8.04427528,143.61,143.57,6.65161461]
[1750795693792,1.39266067,143.61,143.57,6.65161461]
[1750795694481,1.39266067,143.61,143.56,88.7]
[1750795694682,8.04427528,143.61,143.57,6.65161461]
[1750795696492,1.39266067,143.61,143.57,6.65161461]
[1750795696791,6.65161461,143.62,143.57,6.65161461]
[1750795698496,1.39266067,143.61,143.57,6.65161461]
[1750795698793,8.04427528,143.61,143.55,88.7]
[1750795699001,6.65161461,143.59,143.54,95.35161461]
[1750795700575,1.39295166,143.58,143.54,95.35161461]
[1750795700776,6.65161461,143.57,143.52,32.65161461]
[1750795701276,6.65161461,143.57,143.53,6.65161461]
[1750795702701,1.39314572,143.56,143.52,32.65161461]
[1750795704394,1.39314572,143.56,143.52,26.0]
[1750795704699,1.39314572,143.56,143.52,32.65161461]
[1750795705307,1.39314572,143.56,143.53,6.65161461]
[1750795705477,1.39309163,143.57,143.53,6.65161461]
[1750795705678,1.39309163,143.57,143.54,6.65161461]
[1750795705916,1.39285465,143.59,143.56,6.65161461]
[1750795706089,1.39285465,143.59,143.52,39.61922196]
[1750795706298,1.39285465,143.59,143.56,6.65161461]
[1750795706878,15.8218844,143.6,143.56,13.61729951]
[1750795707083,3.48143937,143.62,143.59,6.65161461]
[1750795707084,1.3925637,143.62,143.59,6.65161461]
[1750795707617,8.04417831,143.62,143.52,144.8901967]
[1750795707920,6.65161461,143.6,143.56,6.65161461]
[1750795708609,6.65161461,143.6,143.55,6.65161461]
[1750795708810,1.39285465,143.59,143.55,6.65161461]
[1750795709521,1.39285465,143.59,143.56,6.65161461]
[1750795709719,6.65161461,143.62,143.57,6.65161461]
[1750795710116,1.39269656,143.61,143.58,6.65161461]
[1750795710834,1.3925637,143.62,143.58,6.65161461]
[1750795712707,1.3925637,143.62,143.59,6.65161461]
[1750795714425,1.3925637,143.62,143.58,6.65161461]
[1750795717809,1.3925637,143.62,143.58,13.61636689]
[1750795718617,13.03161461,143.63,143.58,13.61636689]
[1750795718618,6.38,143.63,143.6,6.65161461]
[1750795719320,6.38,143.63,143.62,6.65161461]
[1750795719822,6.38,143.63,143.6,6.96369875]
[1750795719823,7.77247597,143.63,143.6,6.65161461]
[1750795720955,7.77247597,143.63,143.59,6.65161461]
[1750795721130,7.77247597,143.63,143.59,95.35161461]
[1750795721131,14.42409058,143.63,143.59,95.35161461]
[1750795721444,14.42409058,143.63,143.59,88.7]
[1750795723841,6.65161461,143.62,143.59,88.7]
[1750795724655,6.65161461,143.62,143.58,6.65161461]
[1750795724833,6.65161461,143.62,143.57,6.65161461]
[1750795725022,6.65161461,143.61,143.57,6.65161461]
[1750795725417,1.39275766,143.6,143.57,6.65161461]
[1750795725631,1.39275766,143.6,143.57,95.35161461]
[1750795728346,1.39266067,143.61,143.57,95.35161461]
[1750795730740,11.52592697,143.61,143.57,88.7]
[1750795730939,6.65161461,143.59,143.57,88.7]
[1750795731832,1.39295166,143.58,143.57,88.7]
[1750795732353,1.39288872,143.59,143.57,95.35161461]
[1750795732640,1.39280157,143.6,143.57,95.35161461]
[1750795733751,1.39280157,143.6,143.57,6.65161461]
[1750795734042,8.04427528,143.61,143.57,6.65161461]
[1750795734635,6.65161461,143.6,143.56,6.65161461]
[1750795735351,6.65161461,143.6,143.55,6.65161461]
[1750795735745,1.39285465,143.59,143.55,6.65161461]
[1750795736738,8.04446926,143.59,143.54,6.65161461]
[1750795736951,8.04446926,143.59,143.53,88.7]
[1750795736952,6.65161461,143.58,143.53,6.65161461]
[1750795737649,6.65161461,143.58,143.54,6.65161461]
[1750795738132,1.39304868,143.57,143.54,6.65161461]
[1750795738746,1.39298411,143.58,143.54,6.65161461]
[1750795739248,22.13132369,143.61,143.54,6.65161461]
[1750795739249,1.39280157,143.6,143.56,6.65161461]
[1750795740837,1.39280157,143.6,143.57,6.65161461]
[1750795746059,1.39280157,143.6,143.56,6.65161461]
[1750795746650,6.65161461,143.59,143.55,88.7]
[1750795747543,6.65161461,143.57,143.55,88.7]
[1750795747763,6.65161461,143.57,143.52,102.31914732]
[1750795747942,1.39314572,143.56,143.52,95.35161461]
[1750795750351,6.65161461,143.55,143.52,88.7]
[1750795750547,8.04476033,143.56,143.52,88.7]
[1750795750763,1.39314572,143.56,143.52,95.35161461]
[1750795751438,8.04476033,143.56,143.52,95.35161461]
[1750795751638,8.04476033,143.56,143.52,88.7]
[1750795752665,6.65161461,143.54,143.5,88.7]
[1750795753272,6.65161461,143.54,143.5,95.35161461]
[1750795754053,6.65161461,143.54,143.5,88.7]
[1750795754585,1.39343691,143.53,143.5,88.7]
[1750795757365,1.39343691,143.53,143.5,95.35161461]
[1750795760656,1.39333983,143.54,143.5,95.35161461]
[1750795761476,6.65161461,143.56,143.51,6.65161461]
[1750795761689,31.64126347,143.57,143.52,6.65161461]
[1750795762560,1.39314572,143.56,143.52,6.65161461]
[1750795766455,8.04476033,143.56,143.51,6.65161461]
[1750795767173,8.04476033,143.56,143.49,6.96875284]
[1750795767480,8.04476033,143.56,143.51,6.65161461]
[1750795770891,8.04476033,143.56,143.51,95.35161461]
[1750795771097,8.04476033,143.56,143.52,6.65161461]
[1750795771277,1.39314572,143.56,143.53,6.65161461]
[1750795773398,1.39304868,143.57,143.53,6.65161461]
[1750795774479,1.39304868,143.57,143.53,13.61874693]
[1750795774684,1.39304868,143.57,143.55,6.65161461]
[1750795775010,6.34,143.58,143.56,6.65161461]
[1750795775377,6.34,143.58,143.57,6.65161461]
[1750795775904,1.39270836,143.61,143.57,6.65161461]
[1750795776196,1.39270836,143.61,143.59,6.65161461]
[1750795776989,1.39261006,143.62,143.6,6.65161461]
[1750795777374,12.8614,143.63,143.6,6.65161461]
[1750795777581,6.34,143.63,143.62,6.65161461]
[1750795778271,1.39217597,143.66,143.62,6.65161461]
[1750795778478,1.39217597,143.66,143.63,6.65161461]
[1750795781208,1.39217597,143.66,143.58,0.69616696]
[1750795781209,6.65161461,143.64,143.6,6.65161461]
[1750795781379,6.65161461,143.64,143.57,26.0]
[1750795781380,6.65161461,143.64,143.59,6.65161461]
[1750795781578,6.65161461,143.63,143.59,95.35161461]
[1750795782381,1.3925637,143.62,143.59,95.35161461]
[1750795783214,8.04417831,143.62,143.58,6.65161461]
[1750795783718,8.04417831,143.62,143.57,6.65161461]
[1750795783914,6.65161461,143.61,143.56,6.65161461]
[1750795784433,1.39275766,143.6,143.56,6.65161461]
[1750795786723,8.04437227,143.6,143.56,6.65161461]
[1750795786912,8.04437227,143.6,143.55,6.65161461]
[1750795786913,4.87465181,143.6,143.55,6.65161461]
[1750795787115,11.52626642,143.6,143.55,6.65161461]
[1750795787699,6.65161461,143.59,143.54,6.65161461]
[1750795788638,6.65161461,143.56,143.48,10.63975676]
[1750795788810,6.65161461,143.55,143.5,6.65161461]
[1750795790504,1.39333983,143.54,143.5,6.65161461]
[1750795792128,1.39333983,143.54,143.51,6.65161461]
[1750795792296,1.39333983,143.54,143.5,6.65161461]
[1750795792924,6.32,143.56,143.51,6.65161461]
[1750795793135,1.39328596,143.55,143.52,6.65161461]
[1750795793311,1.39328596,143.55,143.53,6.65161461]
[1750795794733,1.39328596,143.55,143.52,6.65161461]
[1750795798238,1.39328596,143.55,143.53,6.65161461]
[1750795799014,1.39328596,143.55,143.52,6.65161461]